[Event "Open Cappelle-la-Grande"]
[Date "2025.02.16"]
[White "Nikolov, Momchil"]
[Black "Ciarletta, Ulysse"]
[WhiteElo "2433"]
[BlackElo "2201"]
[Round "3.3.17"]
[Result "1-0"]
[TimeControl "40/5400+30:1800+30"]

1. e4 {[%clk 1:29:19]} 1... c5 {[%clk 1:30:37]} 2. Nf3 {[%clk 1:29:26]} 2... Nc6
{[%clk 1:30:56]} 3. Bb5 {[%clk 1:29:47]} 3... e6 {[%clk 1:31:17]} 4. Bxc6 {[%clk
1:30:10]} 4... bxc6 {[%clk 1:31:37]} 5. d3 {[%clk 1:30:34]} 5... Ne7 {[%clk
1:31:52]} 6. Nbd2 {[%clk 1:30:48]} 6... Ng6 {[%clk 1:29:43]} 7. h4 {[%clk
1:30:38]} 7... h5 {[%clk 1:30:02]} 8. e5 {[%clk 1:30:26]} 8... f6 {[%clk
1:25:07]} 9. Qe2 {[%clk 1:27:45]} 9... Kf7 {[%clk 1:09:23]} 10. Nc4 {[%clk
1:21:37]} 10... d5 {[%clk 1:03:21]} 11. exd6 {[%clk 1:21:37]} 11... Bxd6 {[%clk
0:59:30]} 12. Nfd2 {[%clk 1:04:31]} 12... Be7 {[%clk 0:53:07]} 13. Ne4 {[%clk
1:04:20]} 13... Qd5 {[%clk 0:46:47]} 14. Bd2 {[%clk 0:57:20]} 14... e5 {[%clk
0:36:53]} 15. O-O-O {[%clk 0:56:09]} 15... Be6 {[%clk 0:30:57]} 16. g3 {[%clk
0:48:19]} 16... Nf8 {[%clk 0:23:33]} 17. Ncd6+ {[%clk 0:45:43]} 17... Bxd6
{[%clk 0:22:47]} 18. c4 {[%clk 0:45:45]} 18... Bg4 {[%clk 0:22:21]} 19. f3
{[%clk 0:40:14]} 19... Qe6 {[%clk 0:22:34]} 20. fxg4 {[%clk 0:40:31]} 20... hxg4
{[%clk 0:22:35]} 21. Be3 {[%clk 0:38:26]} 21... Nd7 {[%clk 0:17:43]} 22. Nxd6+
{[%clk 0:37:00]} 22... Qxd6 {[%clk 0:18:07]} 23. Qxg4 {[%clk 0:37:24]} 23... Nf8
{[%clk 0:14:52]} 24. h5 {[%clk 0:35:07]} 24... Qd7 {[%clk 0:14:32]} 25. Qe4
{[%clk 0:34:42]} 25... Ne6 {[%clk 0:14:41]} 26. g4 {[%clk 0:34:11]} 26... Ke7
{[%clk 0:14:08]} 27. g5 {[%clk 0:30:45]} 27... Raf8 {[%clk 0:13:26]} 28. gxf6+
{[%clk 0:27:05]} 28... gxf6 {[%clk 0:13:47]} 29. h6 {[%clk 0:25:51]} 29... Kd8
{[%clk 0:12:34]} 30. Rdg1 {[%clk 0:24:27]} 30... Kc7 {[%clk 0:11:09]} 31. Rg6
{[%clk 0:24:06]} 31... Rf7 {[%clk 0:09:06]} 32. Rxf6 {[%clk 0:23:10]} 32... Re7
{[%clk 0:06:01]} 33. Qxe5+ {[%clk 0:23:12]} 33... Kb7 {[%clk 0:06:03]} 34. Bxc5
{[%clk 0:20:09]} 34... Nxc5 {[%clk 0:06:13]} 35. Qxc5 {[%clk 0:20:31]} 35...
Rhe8 {[%clk 0:05:59]} 36. Qd6 {[%clk 0:15:56]} 36... Qg4 {[%clk 0:05:58]} 37.
Qxc6+ {[%clk 0:15:13]} 37... Kb8 {[%clk 0:06:26]} 38. Qf3 {[%clk 0:14:05]} 38...
Qd7 {[%clk 0:05:51]} 39. Rf8 {[%clk 0:13:39]} 39... Rxf8 {[%clk 0:04:50]} 40.
Qxf8+ {[%clk 0:14:05]} 1-0

[Variant "Standard"]
[Site "Europe Echecs"]

[Event "Open Cappelle-la-Grande"]
[Date "2025.02.17"]
[White "Iniyan, Pa"]
[Black "Abergel, Thal"]
[WhiteElo "2523"]
[BlackElo "2419"]
[Round "4.4.1"]
[Result "*"]
[TimeControl "40/5400+30:1800+30"]

1. d4 {[%clk 1:30:25]} 1... d6 {[%clk 1:30:53]} 2. Nf3 {[%clk 1:30:47]} 2... c6
{[%clk 1:31:20]} 3. c4 {[%clk 1:30:35]} 3... Bg4 {[%clk 1:31:43]} 4. Nc3 {[%clk
1:30:03]} 4... Nd7 {[%clk 1:31:57]} 5. e4 {[%clk 1:29:34]} 5... g6 {[%clk
1:31:57]} 6. Be2 {[%clk 1:29:50]} 6... Bg7 {[%clk 1:32:09]} 7. Be3 {[%clk
1:27:08]} 7... Qc7 {[%clk 1:31:17]} 8. Ng1 {[%clk 1:26:45]} 8... Bxe2 {[%clk
1:31:30]} 9. Ngxe2 {[%clk 1:27:09]} 9... e5 {[%clk 1:26:09]} 10. d5 {[%clk
1:23:01]} 10... Ne7 {[%clk 1:21:44]} 11. g4 {[%clk 1:23:18]} 11... h5 {[%clk
1:19:22]} 12. g5 {[%clk 1:20:36]} 12... O-O {[%clk 1:19:28]} 13. Qd2 {[%clk
1:17:22]} 13... a6 {[%clk 1:18:29]} 14. a4 {[%clk 1:09:25]} 14... cxd5 {[%clk
1:11:07]} 15. cxd5 {[%clk 1:09:08]} 15... b5 {[%clk 1:11:15]} 16. Nc1 {[%clk
1:06:21]} 16... f5 {[%clk 1:05:20]} 17. gxf6 {[%clk 1:04:12]} 17... Nxf6 {[%clk
1:03:28]} 18. f3 {[%clk 1:02:54]} 18... Qd7 {[%clk 1:01:07]} 19. axb5 {[%clk
0:57:45]} 19... axb5 {[%clk 0:52:49]} 20. Rxa8 {[%clk 0:58:09]} 20... Rxa8
{[%clk 0:53:15]} 21. O-O {[%clk 0:58:29]} 21... b4 {[%clk 0:52:29]} 22. Nd1
{[%clk 0:57:07]} 22... Qb5 {[%clk 0:50:59]} 23. Nf2 {[%clk 0:56:09]} 23... Nd7
{[%clk 0:47:28]} 24. Ncd3 {[%clk 0:55:04]} 24... b3 {[%clk 0:44:36]} 25. Qb4
{[%clk 0:53:50]} 25... Qxb4 {[%clk 0:41:27]} 26. Nxb4 {[%clk 0:54:14]} 26... Kh7
{[%clk 0:41:18]} 27. Rc1 {[%clk 0:51:03]} 27... Rc8 {[%clk 0:38:48]} 28. Ra1
{[%clk 0:50:53]} 28... Rc7 {[%clk 0:35:12]} 29. Nfd3 {[%clk 0:20:31]} 29... Bh6
{[%clk 0:32:53]} 30. Bxh6 {[%clk 0:20:54]} 30... Kxh6 {[%clk 0:33:19]} 31. Ra6
{[%clk 0:21:16]} 31... Nc8 {[%clk 0:30:58]} 32. Rc6 {[%clk 0:21:41]} 32... Rxc6
{[%clk 0:31:20]} 33. dxc6 {[%clk 0:22:07]} 33... Ndb6 {[%clk 0:27:57]} 34. Nc1
{[%clk 0:21:53]} 34... Nc4 {[%clk 0:25:38]} 35. Nxb3 {[%clk 0:21:46]} 35... Kg7
{[%clk 0:25:33]} 36. Kf2 {[%clk 0:18:05]} 36... Nxb2 {[%clk 0:21:59]} 37. Na5
{[%clk 0:18:30]} 37... Na4 {[%clk 0:21:25]} 38. Nc4 {[%clk 0:18:50]} 38... Kf7
{[%clk 0:16:40]} 39. Nd5 {[%clk 0:17:23]} 39... Ke8 {[%clk 0:10:24]} 40. Nc7+
{[%clk 0:14:55]} 40... Ke7 {[%clk 0:03:32]} 41. Kg3 {[%clk 0:15:18]} 41... g5
{[%clk 0:28:04]} 42. Ne3 {[%clk 0:42:22]} 42... Kf7 {[%clk 0:23:24]} 43. Ncd5
{[%clk 0:38:12]} 43... Nc5 {[%clk 0:22:13]} 44. Nc4 {[%clk 0:38:24]} 44... Ne6
{[%clk 0:21:42]} 45. Ncb6 {[%clk 0:38:11]} 45... Nxb6 {[%clk 0:20:29]} 46. Nxb6
{[%clk 0:38:35]} 46... Ke7 {[%clk 0:18:33]} 47. Nc8+ {[%clk 0:34:24]} 47... Kd8
{[%clk 0:18:36]} 48. Nxd6 {[%clk 0:34:47]} 48... Kc7 {[%clk 0:18:53]} 49. Nf7
{[%clk 0:35:12]} 49... Kxc6 {[%clk 0:18:02]} 50. h4 {[%clk 0:34:48]} 50... gxh4+
{[%clk 0:16:23]} 51. Kxh4 {[%clk 0:35:09]} 51... Nd4 {[%clk 0:16:04]} 52. Nxe5+
{[%clk 0:35:26]} 52... Kd6 {[%clk 0:15:13]} 53. Nc4+ {[%clk 0:33:41]} 53... Kc5
{[%clk 0:15:19]} 54. Ne5 {[%clk 0:31:49]} 54... Kd6 {[%clk 0:14:20]} 55. f4
{[%clk 0:32:12]} 55... Ne2 {[%clk 0:10:38]} 56. Kg5 {[%clk 0:31:34]} 56... h4
{[%clk 0:10:13]} 57. Ng4 {[%clk 0:30:00]} 57... h3 {[%clk 0:09:01]} 58. f5
{[%clk 0:29:36]} 58... Nd4 {[%clk 0:06:54]} 59. Kf4 {[%clk 0:27:07]} 59... Ne2+
{[%clk 0:07:08]} 60. Ke3 {[%clk 0:24:06]} 60... Ng3 {[%clk 0:06:30]} 61. Kf4
{[%clk 0:24:31]} 61... Ne2+ {[%clk 0:06:33]} 62. Kf3 {[%clk 0:24:57]} 62... Nc3
{[%clk 0:06:12]} 63. Ke3 {[%clk 0:25:10]} 63... Nb5 {[%clk 0:04:51]} 64. Kf4
{[%clk 0:24:54]} 64... Nc3 {[%clk 0:03:46]} 65. Kf3 {[%clk 0:24:55]} 65... Ke7
{[%clk 0:03:04]} 66. e5 {[%clk 0:24:28]} 66... Nb5 {[%clk 0:03:33]} 67. Ke4
{[%clk 0:24:00]} 67... Nc3+ {[%clk 0:03:56]} 68. Kf4 {[%clk 0:24:18]} 68... Nb5
{[%clk 0:03:14]} 69. Kg5 {[%clk 0:24:30]} 69... Nd4 {[%clk 0:03:19]} 70. Kf4
{[%clk 0:22:25]} 70... Nb5 {[%clk 0:03:47]} 71. Nh2 {[%clk 0:22:00]} 71... Nd4
{[%clk 0:02:19]} 72. Nf3 {[%clk 0:22:07]} 72... Ne2+ {[%clk 0:02:25]} 73. Kg5
{[%clk 0:16:33]} 73... Nd4 {[%clk 0:02:50]} 74. Kg4 {[%clk 0:16:53]} 74... Nc6
{[%clk 0:02:08]} 75. Kf4 {[%clk 0:15:16]} 75... Nd4 {[%clk 0:02:18]} 76. Ke4
{[%clk 0:15:18]} 76... Ne2 {[%clk 0:02:31]} 77. f6+ {[%clk 0:15:15]} 77... Kd7
{[%clk 0:02:48]} 78. Kf5 {[%clk 0:14:45]} 78... Nd4+ {[%clk 0:02:21]} 79. Nxd4
{[%clk 0:11:42]} 79... h2 {[%clk 0:02:50]} 80. e6+ {[%clk 0:12:05]} 80... Kd6
{[%clk 0:02:33]} 81. f7 {[%clk 0:12:19]} *

[Variant "Standard"]
[Site "Europe Echecs"]

[Event "Open Cappelle-la-Grande"]
[Date "2025.02.17"]
[White "Muthaiah AL"]
[Black "Enchev, Ivajlo"]
[WhiteElo "2474"]
[BlackElo "2407"]
[Round "4.4.2"]
[Result "1-0"]
[TimeControl "40/5400+30:1800+30"]

1. d4 {[%clk 1:30:09]} 1... d5 {[%clk 1:26:20]} 2. Bf4 {[%clk 1:30:21]} 2... c5
{[%clk 1:26:19]} 3. e3 {[%clk 1:30:37]} 3... Nc6 {[%clk 1:26:33]} 4. Nf3 {[%clk
1:30:45]} 4... Nf6 {[%clk 1:26:30]} 5. Nbd2 {[%clk 1:30:55]} 5... cxd4 {[%clk
1:22:46]} 6. exd4 {[%clk 1:30:58]} 6... g6 {[%clk 1:22:57]} 7. c3 {[%clk
1:29:52]} 7... Bg7 {[%clk 1:20:58]} 8. Bd3 {[%clk 1:26:15]} 8... Bf5 {[%clk
1:19:52]} 9. Bxf5 {[%clk 1:26:06]} 9... gxf5 {[%clk 1:20:19]} 10. O-O {[%clk
1:23:48]} 10... e6 {[%clk 1:20:00]} 11. Ne1 {[%clk 1:22:21]} 11... O-O {[%clk
1:18:17]} 12. Nd3 {[%clk 1:20:40]} 12... Ne7 {[%clk 1:15:04]} 13. Re1 {[%clk
1:17:56]} 13... Ng6 {[%clk 1:11:33]} 14. Bg5 {[%clk 1:16:26]} 14... Qc7 {[%clk
1:11:11]} 15. Bxf6 {[%clk 1:14:47]} 15... Bxf6 {[%clk 1:11:37]} 16. Nf1 {[%clk
0:59:11]} 16... Be7 {[%clk 1:06:41]} 17. Ng3 {[%clk 0:40:48]} 17... Bd6 {[%clk
1:04:20]} 18. Qh5 {[%clk 0:39:51]} 18... Kh8 {[%clk 1:02:47]} 19. Qh3 {[%clk
0:39:25]} 19... Rg8 {[%clk 0:57:44]} 20. Nh5 {[%clk 0:39:38]} 20... Qe7 {[%clk
0:50:08]} 21. Kh1 {[%clk 0:26:42]} 21... f4 {[%clk 0:27:31]} 22. g3 {[%clk
0:19:28]} 22... fxg3 {[%clk 0:24:44]} 23. hxg3 {[%clk 0:16:38]} 23... f5 {[%clk
0:19:25]} 24. Re3 {[%clk 0:16:10]} 24... Rae8 {[%clk 0:18:52]} 25. Rae1 {[%clk
0:16:30]} 25... Qf7 {[%clk 0:18:46]} 26. Rf3 {[%clk 0:14:30]} 26... Ne7 {[%clk
0:16:25]} 27. Qh4 {[%clk 0:09:56]} 27... Rg6 {[%clk 0:16:01]} 28. Nhf4 {[%clk
0:09:15]} 28... Rg4 {[%clk 0:14:37]} 29. Qh3 {[%clk 0:06:28]} 29... Ng8 {[%clk
0:10:06]} 30. Rfe3 {[%clk 0:04:57]} 30... Bxf4 {[%clk 0:08:46]} 31. Nxf4 {[%clk
0:05:14]} 31... Nf6 {[%clk 0:05:29]} 32. f3 {[%clk 0:04:42]} 32... Rxf4 {[%clk
0:03:22]} 33. gxf4 {[%clk 0:05:11]} 33... Nh5 {[%clk 0:03:31]} 34. Qh4 {[%clk
0:04:42]} 34... Rg8 {[%clk 0:03:09]} 35. Rg1 {[%clk 0:04:53]} 35... Rxg1+ {[%clk
0:02:39]} 36. Kxg1 {[%clk 0:05:21]} 36... h6 {[%clk 0:02:35]} 37. Re2 {[%clk
0:03:24]} 37... Kh7 {[%clk 0:02:57]} 38. Rh2 {[%clk 0:03:33]} 38... Qg7+ {[%clk
0:02:39]} 39. Rg2 {[%clk 0:03:30]} 39... Qf7 {[%clk 0:03:04]} 40. Rh2 {[%clk
0:03:43]} 40... Qg7+ {[%clk 0:03:15]} 41. Kf2 {[%clk 0:03:54]} 41... Nf6 {[%clk
0:03:39]} 42. Qg5 {[%clk 0:03:26]} 42... Qf8 {[%clk 0:03:39]} 43. Qg1 {[%clk
0:27:15]} 43... Qd6 {[%clk 0:32:54]} 44. Qc1 {[%clk 0:26:30]} 44... Ng8 {[%clk
0:32:44]} 45. Qe3 {[%clk 0:25:45]} 45... Nf6 {[%clk 0:29:24]} 46. Qe5 {[%clk
0:25:23]} 46... Qe7 {[%clk 0:29:51]} 47. Kf1 {[%clk 0:20:06]} 47... Ne8 {[%clk
0:29:07]} 48. Re2 {[%clk 0:18:36]} 48... Ng7 {[%clk 0:29:35]} 49. Qxd5 {[%clk
0:17:39]} 49... Qh4 {[%clk 0:29:29]} 50. Qxb7 {[%clk 0:17:29]} 50... Qxf4 {[%clk
0:29:23]} 51. Rxe6 {[%clk 0:14:29]} 51... h5 {[%clk 0:27:51]} 52. Re7 {[%clk
0:13:02]} 52... Qc1+ {[%clk 0:28:10]} 53. Kg2 {[%clk 0:13:14]} 1-0

[Variant "Standard"]
[Site "Europe Echecs"]

[Event "Open Cappelle-la-Grande"]
[Date "2025.02.17"]
[White "Travadon, Loic"]
[Black "Petriashvili, Nikoloz"]
[WhiteElo "2401"]
[BlackElo "2450"]
[Round "4.4.3"]
[Result "1/2-1/2"]
[TimeControl "40/5400+30:1800+30"]

1. e4 {[%clk 1:20:10]} 1... e5 {[%clk 1:29:26]} 2. Nf3 {[%clk 1:20:34]} 2... Nf6
{[%clk 1:29:52]} 3. d4 {[%clk 1:20:48]} 3... Nxe4 {[%clk 1:30:01]} 4. dxe5
{[%clk 1:21:11]} 4... d5 {[%clk 1:30:21]} 5. Nbd2 {[%clk 1:21:34]} 5... Qd7
{[%clk 1:27:52]} 6. Bd3 {[%clk 1:21:58]} 6... Nc5 {[%clk 1:27:58]} 7. Be2 {[%clk
1:22:23]} 7... Nc6 {[%clk 1:23:33]} 8. O-O {[%clk 1:20:00]} 8... Be7 {[%clk
1:23:07]} 9. Nb3 {[%clk 1:20:20]} 9... O-O {[%clk 1:21:52]} 10. Nxc5 {[%clk
0:53:45]} 10... Bxc5 {[%clk 1:21:35]} 11. Re1 {[%clk 0:47:51]} 11... Re8 {[%clk
1:19:47]} 12. Bf4 {[%clk 0:45:36]} 12... Nd8 {[%clk 1:09:00]} 13. Bd3 {[%clk
0:45:06]} 13... Ne6 {[%clk 1:09:03]} 14. Bg3 {[%clk 0:45:26]} 14... a5 {[%clk
1:02:04]} 15. c3 {[%clk 0:45:32]} 15... b6 {[%clk 1:01:48]} 16. Qc2 {[%clk
0:38:02]} 16... g6 {[%clk 1:01:46]} 17. Rad1 {[%clk 0:37:30]} 17... Bf8 {[%clk
0:59:57]} 18. h4 {[%clk 0:29:46]} 18... Nc5 {[%clk 0:59:01]} 19. h5 {[%clk
0:28:14]} 19... Nxd3 {[%clk 0:59:13]} 20. Qxd3 {[%clk 0:28:38]} 20... Bc5 {[%clk
0:49:56]} 21. hxg6 {[%clk 0:26:59]} 21... hxg6 {[%clk 0:50:08]} 22. Nd4 {[%clk
0:19:25]} 22... Qg4 {[%clk 0:49:54]} 23. Nb3 {[%clk 0:18:47]} 23... Be6 {[%clk
0:37:38]} 24. Nxc5 {[%clk 0:18:40]} 24... bxc5 {[%clk 0:38:07]} 25. Qe3 {[%clk
0:18:38]} 25... d4 {[%clk 0:38:15]} 26. cxd4 {[%clk 0:18:04]} 26... Rad8 {[%clk
0:38:44]} 27. d5 {[%clk 0:17:30]} 27... Rxd5 {[%clk 0:39:09]} 28. Rxd5 {[%clk
0:17:49]} 28... Bxd5 {[%clk 0:39:37]} 29. Qxc5 {[%clk 0:17:52]} 29... Qb4 {[%clk
0:39:07]} 30. Qxb4 {[%clk 0:07:02]} 30... axb4 {[%clk 0:39:36]} 31. Rc1 {[%clk
0:07:12]} 31... c6 {[%clk 0:38:03]} 32. b3 {[%clk 0:06:20]} 32... g5 {[%clk
0:36:53]} 33. f3 {[%clk 0:06:27]} 33... Kh7 {[%clk 0:36:09]} 34. Rc2 {[%clk
0:05:50]} 34... Kg6 {[%clk 0:36:25]} 35. Be1 {[%clk 0:03:53]} 35... Rb8 {[%clk
0:36:54]} 36. Kf2 {[%clk 0:04:08]} 36... Kf5 {[%clk 0:37:09]} 37. Ke3 {[%clk
0:03:25]} 37... Rb5 {[%clk 0:34:28]} 38. Kd4 {[%clk 0:02:44]} 38... g4 {[%clk
0:34:57]} 39. fxg4+ {[%clk 0:02:18]} 39... Kxg4 {[%clk 0:35:25]} 40. g3 {[%clk
0:02:22]} 40... Kf5 {[%clk 0:31:41]} 41. Rc5 {[%clk 0:26:05]} 41... Rxc5 {[%clk
1:00:43]} 42. Kxc5 {[%clk 0:26:29]} 42... Kxe5 {[%clk 1:01:11]} 43. Bxb4 {[%clk
0:26:49]} 43... Ke6 {[%clk 1:01:38]} 44. Kb6 {[%clk 0:27:06]} 44... Kd7 {[%clk
1:01:58]} 45. Bd2 {[%clk 0:27:15]} 45... Be4 {[%clk 0:49:34]} 46. Bf4 {[%clk
0:22:24]} 46... Bd5 {[%clk 0:45:29]} 47. Be3 {[%clk 0:21:48]} 47... f5 {[%clk
0:45:24]} 1/2-1/2

[Variant "Standard"]
[Site "Europe Echecs"]

[Event "Open Cappelle-la-Grande"]
[Date "2025.02.17"]
[White "Bacrot, Alexandre"]
[Black "Yordanov, Lachezar"]
[WhiteElo "2423"]
[BlackElo "2352"]
[Round "4.4.4"]
[Result "1-0"]
[TimeControl "40/5400+30:1800+30"]

1. e4 {[%clk 1:30:59]} 1... c5 {[%clk 1:25:46]} 2. d4 {[%clk 1:30:32]} 2... cxd4
{[%clk 1:25:50]} 3. Qxd4 {[%clk 1:30:57]} 3... Nc6 {[%clk 1:25:15]} 4. Qe3
{[%clk 1:31:24]} 4... g6 {[%clk 1:24:48]} 5. Nf3 {[%clk 1:31:44]} 5... Bg7
{[%clk 1:23:58]} 6. Be2 {[%clk 1:31:17]} 6... d6 {[%clk 1:24:16]} 7. h3 {[%clk
1:31:41]} 7... Nf6 {[%clk 1:24:40]} 8. O-O {[%clk 1:32:05]} 8... O-O {[%clk
1:24:59]} 9. c4 {[%clk 1:32:14]} 9... Nd7 {[%clk 1:14:22]} 10. Nc3 {[%clk
1:32:18]} 10... Qb6 {[%clk 1:13:15]} 11. Qg5 {[%clk 1:30:52]} 11... Nde5 {[%clk
0:54:45]} 12. Nxe5 {[%clk 1:20:38]} 12... Bxe5 {[%clk 0:50:59]} 13. Nd5 {[%clk
1:20:06]} 13... Qd8 {[%clk 0:51:09]} 14. Rd1 {[%clk 1:11:31]} 14... b6 {[%clk
0:39:43]} 15. f4 {[%clk 0:59:51]} 15... Bg7 {[%clk 0:39:22]} 16. Qg3 {[%clk
0:49:39]} 16... Nd4 {[%clk 0:30:41]} 17. Bf1 {[%clk 0:48:43]} 17... Bb7 {[%clk
0:25:32]} 18. Qf2 {[%clk 0:49:07]} 18... Ne6 {[%clk 0:24:38]} 19. Be3 {[%clk
0:46:49]} 19... Rc8 {[%clk 0:23:53]} 20. Rac1 {[%clk 0:37:16]} 20... Nc5 {[%clk
0:19:38]} 21. e5 {[%clk 0:37:07]} 21... Ne4 {[%clk 0:19:02]} 22. Qf3 {[%clk
0:33:34]} 22... Bxd5 {[%clk 0:16:40]} 23. cxd5 {[%clk 0:27:39]} 23... f5 {[%clk
0:15:14]} 24. exf6 {[%clk 0:28:05]} 24... Nxf6 {[%clk 0:15:36]} 25. Rc6 {[%clk
0:26:56]} 25... Kh8 {[%clk 0:15:22]} 26. Rdc1 {[%clk 0:27:11]} 26... Qd7 {[%clk
0:14:57]} 27. Bd3 {[%clk 0:24:10]} 27... e6 {[%clk 0:14:48]} 28. dxe6 {[%clk
0:24:34]} 28... Qxe6 {[%clk 0:14:53]} 29. f5 {[%clk 0:25:01]} 29... Qd7 {[%clk
0:15:01]} 30. Rxc8 {[%clk 0:23:48]} 30... Rxc8 {[%clk 0:15:30]} 31. Rxc8+ {[%clk
0:24:07]} 31... Qxc8 {[%clk 0:15:55]} 32. fxg6 {[%clk 0:24:30]} 32... hxg6
{[%clk 0:15:21]} 33. Bxg6 {[%clk 0:23:01]} 33... Qe6 {[%clk 0:15:43]} 34. Bd4
{[%clk 0:21:45]} 34... d5 {[%clk 0:15:49]} 35. Qf4 {[%clk 0:17:16]} 35... Kg8
{[%clk 0:12:14]} 36. Qb8+ {[%clk 0:10:38]} 36... Bf8 {[%clk 0:12:35]} 37. Qe5
{[%clk 0:11:03]} 37... Qxe5 {[%clk 0:11:49]} 38. Bxe5 {[%clk 0:11:32]} 38...
Bc5+ {[%clk 0:12:10]} 39. Kf1 {[%clk 0:11:47]} 39... Nd7 {[%clk 0:12:36]} 40.
Bh2 {[%clk 0:10:39]} 40... Bd4 {[%clk 0:13:00]} 41. Bf5 {[%clk 0:11:01]} 41...
Nf6 {[%clk 0:12:47]} 42. b3 {[%clk 0:06:51]} 42... Kf7 {[%clk 0:13:10]} 43. Ke2
{[%clk 0:06:37]} 43... Ng8 {[%clk 0:13:19]} 44. g4 {[%clk 0:05:35]} 44... Ne7
{[%clk 0:13:42]} 45. Bb1 {[%clk 0:04:56]} 45... Bf6 {[%clk 0:13:54]} 46. Bf4
{[%clk 0:03:02]} 46... Nc6 {[%clk 0:14:12]} 47. g5 {[%clk 0:02:44]} 47... Nd4+
{[%clk 0:14:10]} 48. Ke3 {[%clk 0:28:43]} 48... Bg7 {[%clk 0:42:50]} 49. h4
{[%clk 0:26:18]} 49... Nb5 {[%clk 0:43:12]} 50. h5 {[%clk 0:23:55]} 50... Bb2
{[%clk 0:43:15]} 51. Kf2 {[%clk 0:21:05]} 51... Nc3 {[%clk 0:43:21]} 52. g6+
{[%clk 0:20:40]} 52... Kf6 {[%clk 0:43:41]} 53. Be5+ {[%clk 0:19:00]} 53... Ke7
{[%clk 0:41:51]} 54. g7 {[%clk 0:19:21]} 54... Kf7 {[%clk 0:42:16]} 55. Bh7
{[%clk 0:19:44]} 55... Ne4+ {[%clk 0:42:41]} 56. Kg2 {[%clk 0:20:08]} 1-0

[Variant "Standard"]
[Site "Europe Echecs"]

[Event "Open Cappelle-la-Grande"]
[Date "2025.02.17"]
[White "Degraeve, Remy"]
[Black "Pranesh M"]
[WhiteElo "2371"]
[BlackElo "2586"]
[Round "4.4.5"]
[Result "1/2-1/2"]
[TimeControl "40/5400+30:1800+30"]

1. d4 {[%clk 1:30:54]} 1... d5 {[%clk 1:30:52]} 2. c4 {[%clk 1:31:19]} 2... e6
{[%clk 1:31:14]} 3. Nc3 {[%clk 1:31:45]} 3... Nf6 {[%clk 1:31:33]} 4. cxd5
{[%clk 1:32:11]} 4... exd5 {[%clk 1:31:59]} 5. Bg5 {[%clk 1:32:33]} 5... Be6
{[%clk 1:32:12]} 6. e3 {[%clk 1:32:57]} 6... Nbd7 {[%clk 1:32:21]} 7. Bd3 {[%clk
1:33:21]} 7... c6 {[%clk 1:32:30]} 8. h3 {[%clk 1:32:58]} 8... Be7 {[%clk
1:32:12]} 9. Nf3 {[%clk 1:33:13]} 9... Nh5 {[%clk 1:31:32]} 10. Bxe7 {[%clk
1:33:35]} 10... Qxe7 {[%clk 1:31:59]} 11. Qb3 {[%clk 1:33:52]} 11... Nb6 {[%clk
1:29:25]} 12. a4 {[%clk 1:23:35]} 12... Nc8 {[%clk 1:25:51]} 13. a5 {[%clk
1:21:43]} 13... a6 {[%clk 1:24:28]} 14. O-O {[%clk 1:20:01]} 14... Nd6 {[%clk
1:24:12]} 15. Qc2 {[%clk 1:16:52]} 15... g6 {[%clk 1:22:26]} 16. Rfe1 {[%clk
1:14:57]} 16... O-O {[%clk 1:18:37]} 17. e4 {[%clk 1:09:26]} 17... dxe4 {[%clk
1:15:41]} 18. Bxe4 {[%clk 1:09:07]} 18... Qc7 {[%clk 1:09:10]} 19. Qd2 {[%clk
0:56:50]} 19... Nf6 {[%clk 1:05:55]} 20. Qf4 {[%clk 0:52:14]} 20... Kg7 {[%clk
0:56:50]} 21. Ng5 {[%clk 0:46:10]} 21... Rae8 {[%clk 0:53:15]} 22. Nxe6+ {[%clk
0:27:59]} 22... Rxe6 {[%clk 0:51:50]} 23. d5 {[%clk 0:26:52]} 23... cxd5 {[%clk
0:50:33]} 24. Bxd5 {[%clk 0:22:14]} 24... Rxe1+ {[%clk 0:45:47]} 25. Rxe1 {[%clk
0:22:41]} 25... Rd8 {[%clk 0:45:50]} 26. Qb4 {[%clk 0:15:55]} 26... Rd7 {[%clk
0:42:16]} 27. Bf3 {[%clk 0:14:54]} 27... Nc4 {[%clk 0:40:09]} 28. Na4 {[%clk
0:12:29]} 28... Ne5 {[%clk 0:37:09]} 29. Be2 {[%clk 0:12:32]} 29... Nc6 {[%clk
0:36:49]} 30. Qc3 {[%clk 0:11:47]} 30... Nxa5 {[%clk 0:35:57]} 31. Nc5 {[%clk
0:11:48]} 31... Re7 {[%clk 0:36:14]} 32. Bf1 {[%clk 0:11:19]} 32... Nc6 {[%clk
0:34:40]} 33. Rxe7 {[%clk 0:11:43]} 33... Qxe7 {[%clk 0:34:56]} 34. Nxa6 {[%clk
0:11:58]} 34... Qd6 {[%clk 0:30:59]} 35. Nc5 {[%clk 0:11:39]} 35... b6 {[%clk
0:31:21]} 36. Ne4 {[%clk 0:10:57]} 36... Qe6 {[%clk 0:30:38]} 37. Ng5 {[%clk
0:10:47]} 37... Qd6 {[%clk 0:30:49]} 38. Ne4 {[%clk 0:10:26]} 38... Qe6 {[%clk
0:29:57]} 39. Ng5 {[%clk 0:10:25]} 39... Qd6 {[%clk 0:29:47]} 1/2-1/2

[Variant "Standard"]
[Site "Europe Echecs"]

[Event "Open Cappelle-la-Grande"]
[Date "2025.02.17"]
[White "Laurent-Paoli, Pierre"]
[Black "Zienkiewicz, Jan"]
[WhiteElo "2565"]
[BlackElo "2345"]
[Round "4.4.6"]
[Result "0-1"]
[TimeControl "40/5400+30:1800+30"]

1. d4 {[%clk 1:21:33]} 1... Nf6 {[%clk 1:30:51]} 2. c4 {[%clk 1:21:58]} 2... e6
{[%clk 1:31:10]} 3. Nc3 {[%clk 1:22:20]} 3... Bb4 {[%clk 1:31:35]} 4. e3 {[%clk
1:22:15]} 4... O-O {[%clk 1:31:41]} 5. a3 {[%clk 1:22:43]} 5... Bxc3+ {[%clk
1:31:53]} 6. bxc3 {[%clk 1:23:07]} 6... d6 {[%clk 1:31:31]} 7. Ne2 {[%clk
1:23:17]} 7... e5 {[%clk 1:30:54]} 8. Ng3 {[%clk 1:23:42]} 8... Re8 {[%clk
1:29:59]} 9. Be2 {[%clk 1:22:43]} 9... Nc6 {[%clk 1:25:17]} 10. O-O {[%clk
1:17:52]} 10... b6 {[%clk 1:16:48]} 11. f3 {[%clk 1:06:39]} 11... Ba6 {[%clk
1:08:01]} 12. e4 {[%clk 1:05:52]} 12... Na5 {[%clk 1:06:14]} 13. Nf5 {[%clk
1:04:59]} 13... Bxc4 {[%clk 0:53:52]} 14. Bg5 {[%clk 0:56:58]} 14... Be6 {[%clk
0:47:57]} 15. Nxg7 {[%clk 0:49:23]} 15... Kxg7 {[%clk 0:47:52]} 16. f4 {[%clk
0:49:47]} 16... Qd7 {[%clk 0:44:56]} 17. fxe5 {[%clk 0:38:47]} 17... Nxe4 {[%clk
0:44:46]} 18. Bf6+ {[%clk 0:39:12]} 18... Nxf6 {[%clk 0:43:38]} 19. exf6+ {[%clk
0:39:37]} 19... Kh8 {[%clk 0:36:12]} 20. Bd3 {[%clk 0:39:59]} 20... Bc4 {[%clk
0:33:54]} 21. Bf5 {[%clk 0:38:07]} 21... Be6 {[%clk 0:34:03]} 22. Bb1 {[%clk
0:28:10]} 22... Qb5 {[%clk 0:30:08]} 23. Be4 {[%clk 0:13:03]} 23... c6 {[%clk
0:26:39]} 24. h4 {[%clk 0:08:43]} 24... Bb3 {[%clk 0:20:34]} 25. Qf3 {[%clk
0:04:34]} 25... Bd5 {[%clk 0:19:20]} 26. Rae1 {[%clk 0:03:09]} 26... Nc4 {[%clk
0:16:40]} 27. a4 {[%clk 0:00:46]} 27... Qa5 {[%clk 0:14:29]} 28. Qh5 {[%clk
0:01:16]} 28... Rxe4 {[%clk 0:13:59]} 29. Rxe4 {[%clk 0:01:03]} 29... Bxe4
{[%clk 0:14:27]} 30. Qxf7 {[%clk 0:01:26]} 30... Rg8 {[%clk 0:14:47]} 31. Qe7
{[%clk 0:00:41]} 31... Rxg2+ {[%clk 0:12:50]} 32. Kh1 {[%clk 0:01:10]} 32...
Qxc3 {[%clk 0:13:11]} 0-1

[Variant "Standard"]
[Site "Europe Echecs"]